bitfinex/quotes_BTCUSD_20251027
["timestamp","ask_amount","ask_price","bid_price","bid_amount"]
[1761572382774,1.35713615,114730.0,114720.0,1.07208956]
[1761572383576,0.37223354,114730.0,114720.0,1.07208956]
[1761572383777,0.39558365,114730.0,114720.0,1.07208956]
[1761572384013,0.36446338,114730.0,114720.0,1.07208956]
[1761572384376,0.34824842,114730.0,114720.0,1.07208956]
[1761572385219,0.34825345,114730.0,114720.0,1.07208956]
[1761572385425,0.43807246,114730.0,114720.0,1.07208956]
[1761572385666,0.41472235,114730.0,114720.0,1.07208956]
[1761572386704,0.32490334,114730.0,114720.0,1.07208956]
[1761572387163,1.24333705,114730.0,114720.0,0.47716956]
[1761572387374,1.25110721,114730.0,114720.0,0.86284956]
[1761572387587,0.69602361,114730.0,114720.0,0.86284956]
[1761572387790,0.71937357,114730.0,114720.0,0.86284956]
[1761572388001,1.02427618,114730.0,114720.0,0.86284956]
[1761572388217,0.43807231,114730.0,114720.0,0.86284956]
[1761572388641,0.99315591,114730.0,114720.0,0.70720956]
[1761572388849,0.99315591,114730.0,114720.0,0.86308956]
[1761572392378,0.96980595,114730.0,114720.0,0.86308956]
[1761572393625,0.96980595,114730.0,114720.0,0.86304956]
[1761572393839,0.32490334,114730.0,114720.0,0.86304956]
[1761572394046,0.23508433,114730.0,114720.0,0.86304956]
[1761572394257,0.87998694,114730.0,114720.0,0.47716956]
[1761572394463,0.87998694,114730.0,114720.0,1.07224956]
[1761572394671,0.32490334,114730.0,114720.0,1.07224956]
[1761572394897,0.37715938,114730.0,114720.0,1.07224956]
[1761572395103,0.93224298,114730.0,114720.0,1.07224956]
[1761572396040,0.37715938,114730.0,114720.0,1.07224956]
[1761572396259,0.93224298,114730.0,114720.0,0.47716956]
[1761572396458,0.93224298,114730.0,114720.0,1.07252956]
[1761572397917,0.37715938,114730.0,114720.0,1.07252956]
[1761572398331,0.93224298,114730.0,114720.0,1.07252956]
[1761572398712,0.92970934,114730.0,114720.0,1.07252956]
[1761572399926,0.92970934,114730.0,114720.0,0.84244956]
[1761572400266,0.8774533,114730.0,114720.0,1.07248956]
[1761572400688,0.8774533,114730.0,114720.0,0.47716956]
[1761572400923,1.24080326,114730.0,114720.0,1.07244956]
[1761572401924,1.24080326,114730.0,114720.0,0.47716956]
[1761572402138,1.24080326,114730.0,114720.0,1.07240956]
[1761572402354,1.33062227,114730.0,114720.0,1.07240956]
[1761572402742,0.68571966,114730.0,114720.0,1.07240956]
[1761572402936,1.24080326,114730.0,114720.0,1.07240956]
[1761572403144,1.2174533,114730.0,114720.0,1.07240956]
[1761572403346,0.31426134,114730.0,114720.0,1.07240956]
[1761572403556,0.29560769,114730.0,114720.0,1.07240956]
[1761572404383,0.29814133,114730.0,114720.0,1.07240956]
[1761572404783,0.20832232,114730.0,114720.0,1.24674707]
[1761572404988,0.20832232,114730.0,114720.0,1.07240956]
[1761572405755,0.20832232,114730.0,114720.0,1.24674707]
[1761572406169,0.29814133,114730.0,114720.0,1.07240956]
[1761572406484,0.29814133,114730.0,114720.0,1.07236956]
[1761572406706,0.034,114730.0,114720.0,1.24670707]
[1761572406935,0.034,114730.0,114720.0,2.27451446]
[1761572407264,0.034,114730.0,114720.0,2.36433347]
[1761572408069,0.034,114730.0,114720.0,1.08132608]
[1761572408459,0.033,114730.0,114720.0,2.36437347]
[1761572408895,0.023,114730.0,114720.0,2.42695224]
[1761572409121,0.17426163,114770.0,114750.0,0.17428703]
[1761572409367,0.17427675,114760.0,114750.0,0.17429193]
[1761572409583,0.26409576,114760.0,114750.0,0.38344]
[1761572409821,0.26409576,114760.0,114750.0,0.59528]
[1761572410250,0.00014612,114770.0,114750.0,0.76957193]
[1761572410457,0.26422682,114770.0,114750.0,0.76957193]
[1761572410694,0.00014612,114770.0,114760.0,0.17773081]
[1761572410912,0.17440768,114770.0,114760.0,0.17427675]
[1761572411125,0.00014612,114770.0,114760.0,0.17427675]
[1761572411331,0.00014612,114770.0,114760.0,1.20208414]
[1761572412156,0.00014612,114770.0,114760.0,0.51427675]
[1761572412367,0.00014612,114770.0,114760.0,1.29190315]
[1761572412570,0.02914612,114770.0,114760.0,1.29190315]
[1761572412773,0.00014612,114770.0,114760.0,1.29190315]
[1761572413189,0.02614612,114770.0,114760.0,1.29690315]
[1761572413611,0.02614612,114770.0,114760.0,0.60409576]
[1761572414024,0.04614612,114770.0,114760.0,1.11343675]
[1761572414448,0.22040768,114770.0,114760.0,0.55312]
[1761572414654,0.04614612,114770.0,114760.0,0.77426745]
[1761572414863,0.22040768,114770.0,114760.0,0.5999907]
[1761572415065,0.22040768,114770.0,114760.0,0.20912]
[1761572415266,0.22040768,114770.0,114760.0,0.05576]
[1761572415495,0.00014612,114770.0,114760.0,0.23003675]
[1761572416143,0.02314612,114770.0,114760.0,0.23403675]
[1761572416464,0.00014612,114770.0,114750.0,0.17429193]
[1761572416686,0.19740826,114770.0,114760.0,0.004]
[1761572416905,1.01220016,114770.0,114760.0,0.05976]
[1761572417111,1.01220016,114770.0,114760.0,0.2158]
[1761572417566,1.01220016,114770.0,114760.0,0.2118]
[1761572417567,0.98920016,114770.0,114760.0,0.2118]
[1761572417766,0.30139277,114770.0,114760.0,0.2118]
[1761572417982,0.98920016,114770.0,114760.0,0.2118]
[1761572418415,0.98920016,114770.0,114750.0,0.17428546]
[1761572418641,0.89938115,114770.0,114760.0,0.2118]
[1761572418849,0.98920016,114770.0,114760.0,0.2118]
[1761572419266,0.98919958,114770.0,114760.0,0.2118]
[1761572419484,0.82893802,114770.0,114760.0,0.38607675]
[1761572419701,0.31539219,114770.0,114760.0,0.2118]
[1761572419953,0.98919958,114770.0,114760.0,0.2118]
[1761572420389,1.00819958,114770.0,114760.0,0.005]
[1761572420602,1.04438186,114770.0,114760.0,0.21676]
[1761572421062,1.04438186,114770.0,114760.0,0.005]
[1761572421063,1.38438186,114770.0,114760.0,0.005]
[1761572421280,1.38438186,114770.0,114760.0,0.21676]
[1761572421712,0.69657447,114770.0,114760.0,0.21676]
[1761572421919,1.38438186,114770.0,114760.0,0.21676]
[1761572422634,1.34819958,114770.0,114760.0,0.21676]
[1761572422833,1.38538186,114770.0,114760.0,0.21676]
[1761572423038,1.36638186,114770.0,114760.0,0.21176]
[1761572423242,0.67757447,114770.0,114760.0,0.21176]
[1761572423453,0.14114741,114770.0,114760.0,0.38603675]
[1761572423708,0.10496513,114770.0,114760.0,0.38603675]
[1761572423924,0.00114612,114770.0,114760.0,0.38603675]
[1761572424131,0.01214612,114770.0,114760.0,0.38603675]
[1761572424648,0.00114612,114770.0,114760.0,0.67027675]
[1761572424914,0.00814612,114770.0,114760.0,1.35808414]
[1761572425129,0.00814612,114770.0,114760.0,1.19995675]
[1761572425849,0.00814612,114770.0,114760.0,1.97758315]
[1761572426686,0.00014612,114770.0,114760.0,1.97758315]
[1761572427108,0.00814612,114770.0,114760.0,1.28977576]
[1761572427318,0.00814612,114770.0,114760.0,1.28969576]
[1761572427555,0.00814612,114770.0,114760.0,0.60487675]
[1761572427763,0.00814612,114770.0,114760.0,1.19983675]
[1761572428386,0.00014612,114770.0,114760.0,0.60487675]
[1761572428590,0.00814612,114770.0,114760.0,1.19983675]
[1761572429232,0.00814612,114770.0,114760.0,0.98815675]
[1761572429432,0.00814612,114770.0,114760.0,1.19979675]
[1761572429634,0.00814612,114770.0,114760.0,0.60487675]
[1761572429839,0.00814612,114770.0,114760.0,1.19979675]
[1761572430044,0.00014612,114770.0,114760.0,1.19979675]
[1761572430874,0.00814612,114770.0,114760.0,1.19979675]
[1761572431545,0.18240768,114770.0,114760.0,1.19979675]
[1761572431753,0.00814612,114770.0,114760.0,1.19979675]
[1761572431961,0.18240768,114770.0,114760.0,0.47384]
[1761572432166,0.18240768,114770.0,114760.0,0.68544]
[1761572432369,0.302197,114770.0,114760.0,0.0906]
[1761572432576,0.294197,114770.0,114760.0,0.68544]
[1761572432987,0.26422669,114770.0,114760.0,0.68544]
[1761572434295,0.27222669,114770.0,114760.0,0.68544]
[1761572434856,0.95203408,114770.0,114760.0,0.0906]
[1761572435056,0.9681214,114770.0,114760.0,0.68536]
[1761572435744,1.00430368,114770.0,114760.0,0.68536]
[1761572435948,1.08612269,114770.0,114760.0,0.68536]
[1761572437080,1.08612968,114770.0,114760.0,0.68536]
[1761572437306,1.09312968,114770.0,114760.0,0.68536]
[1761572437947,0.40632229,114770.0,114760.0,0.68536]
[1761572438119,0.31650328,114770.0,114760.0,0.68536]
[1761572440160,1.00431067,114770.0,114760.0,0.68536]
[1761572440907,0.31650328,114770.0,114760.0,0.68536]
[1761572441106,1.00431067,114770.0,114760.0,0.68536]
[1761572441314,1.09412968,114770.0,114760.0,0.0906]
[1761572441519,1.09412968,114770.0,114760.0,0.5296]
[1761572441715,0.17432232,114730.0,114720.0,0.47150757]
[1761572441922,0.26414133,114730.0,114720.0,1.06626757]
[1761572443662,0.26414133,114730.0,114720.0,1.24060508]
[1761572443808,0.08981901,114730.0,114720.0,1.24060508]
[1761572444009,0.17430712,114740.0,114730.0,0.17432232]
[1761572444215,0.17429193,114750.0,114740.0,0.17430581]
[1761572444416,0.17431348,114760.0,114740.0,0.33002581]
[1761572444635,0.17429193,114750.0,114740.0,0.15572]
[1761572444836,0.17429193,114750.0,114740.0,0.21144]
[1761572445038,0.17429193,114750.0,114730.0,0.17432232]
[1761572445039,0.17430712,114740.0,114730.0,0.17432232]
[1761572445245,0.17430712,114740.0,114730.0,0.76912232]
[1761572445990,0.17430712,114740.0,114730.0,0.76916232]
[1761572446195,0.27211094,114750.0,114730.0,0.76916232]
[1761572447026,0.09781901,114750.0,114740.0,0.17430712]
[1761572447234,0.26411094,114750.0,114730.0,0.76916232]
[1761572447438,0.18230712,114740.0,114730.0,0.76916232]
[1761572447861,0.17430712,114740.0,114730.0,0.76916232]
[1761572448679,0.26411094,114750.0,114730.0,0.76916232]
[1761572449097,0.008,114740.0,114730.0,0.76916232]
[1761572450328,0.26411119,114750.0,114740.0,0.17430712]
[1761572450539,0.17427675,114760.0,114750.0,0.17427829]
[1761572450739,0.17426311,114770.0,114750.0,0.32995829]
[1761572450998,0.00014615,114770.0,114760.0,0.23349081]
[1761572451196,0.00014615,114770.0,114760.0,0.23003675]
[1761572452441,0.00814615,114770.0,114760.0,0.23003675]
[1761572452776,0.18240771,114770.0,114760.0,0.23003675]
[1761572453012,0.18140771,114770.0,114760.0,0.05576]
[1761572453188,0.17427675,114760.0,114740.0,0.18302247]
[1761572453387,0.27122672,114770.0,114750.0,0.76905193]
[1761572453589,0.17427675,114760.0,114750.0,0.76905193]
[1761572453856,0.17429435,114750.0,114740.0,0.17430712]
[1761572454060,0.17429435,114750.0,114740.0,0.76902712]
[1761572454215,0.17429435,114750.0,114740.0,0.59472]
[1761572454632,0.17429435,114750.0,114740.0,0.76902712]
[1761572455660,0.17929435,114750.0,114740.0,0.76902712]
[1761572455877,0.26911336,114750.0,114740.0,0.59472]
[1761572457463,0.26911336,114750.0,114720.0,0.99456195]
[1761572457675,0.17430712,114740.0,114730.0,0.71328232]
[1761572457919,0.17430712,114740.0,114720.0,0.98584508]
[1761572457920,0.17432232,114730.0,114720.0,0.98584508]
[1761572458090,0.17432232,114730.0,114720.0,1.19482757]
[1761572458381,0.17432232,114730.0,114720.0,1.24056508]
[1761572458790,0.17432232,114730.0,114720.0,1.07022757]
[1761572459173,0.17432232,114730.0,114720.0,1.06622757]
[1761572459372,0.26414133,114730.0,114720.0,1.06622757]
[1761572459573,0.27514133,114730.0,114720.0,1.07022757]
[1761572460816,0.27514133,114730.0,114720.0,1.06622757]
[1761572461022,0.26414133,114730.0,114720.0,1.06622757]
[1761572461224,0.30798618,114730.0,114720.0,0.91058757]
[1761572461459,1.00979357,114730.0,114720.0,0.91358757]
[1761572461665,0.32198618,114730.0,114720.0,1.06918757]
[1761572462062,0.27814133,114730.0,114720.0,1.06918757]
[1761572463648,0.27814133,114730.0,114720.0,1.07001872]
[1761572464815,0.96594872,114730.0,114720.0,0.47533872]
[1761572465022,1.342131,114730.0,114720.0,0.30309898]
[1761572465148,0.21053499,114710.0,114700.0,0.21438656]
[1761572465380,1.32816139,114710.0,114700.0,0.44447112]
[1761572465569,0.51436791,114700.0,114690.0,0.01930371]
[1761572465755,0.60433292,114700.0,114690.0,0.17490371]
[1761572465956,1.24197319,114700.0,114690.0,0.17490371]
[1761572466162,0.26433292,114700.0,114690.0,0.17490371]
[1761572466388,0.17451391,114700.0,114690.0,0.17490371]
[1761572466766,0.26433292,114700.0,114690.0,0.17530371]
[1761572466973,0.3005152,114700.0,114690.0,0.17530371]
[1761572467117,0.85666868,114700.0,114690.0,0.17530371]
[1761572467319,0.94648769,114700.0,114690.0,0.17530371]
[1761572467721,0.94748769,114700.0,114690.0,0.17530371]
[1761572468126,0.96648769,114700.0,114690.0,0.01930371]
[1761572468325,0.21056539,114690.0,114680.0,0.02]
[1761572468526,0.85653788,114690.0,114680.0,0.02]
[1761572468728,1.28635689,114690.0,114680.0,1e-08]
[1761572468938,1.64775639,114690.0,114680.0,1e-08]
[1761572469175,1.63969476,114690.0,114680.0,1e-08]
[1761572469370,1.61653976,114690.0,114680.0,1e-08]
[1761572469573,1.32105376,114690.0,114680.0,0.02636001]
[1761572469789,1.32105376,114690.0,114640.0,0.08403237]
[1761572469790,0.17444395,114650.0,114640.0,0.08403237]
[1761572470009,0.29915023,114650.0,114640.0,0.08403237]
[1761572470239,0.89148599,114650.0,114640.0,0.08403237]
[1761572470470,0.89148599,114650.0,114630.0,0.00411]
[1761572470471,1.10679493,114640.0,114630.0,1e-08]
[1761572470695,1.19661394,114640.0,114630.0,1e-08]
[1761572470892,1.19661394,114640.0,114630.0,0.00120001]
[1761572470893,0.73027947,114640.0,114630.0,0.00120001]
[1761572471068,0.73042537,114640.0,114630.0,0.00120001]
[1761572471269,0.30060636,114640.0,114630.0,0.00307187]
[1761572471643,0.0001459,114640.0,114630.0,0.00307187]
[1761572471853,0.0151459,114640.0,114630.0,0.18104798]
[1761572472060,0.0151459,114640.0,114630.0,0.17754626]
[1761572472267,0.0001459,114640.0,114630.0,0.73369974]
[1761572472499,0.0001459,114640.0,114630.0,0.61736526]
[1761572472500,0.0011459,114640.0,114630.0,0.61736526]
[1761572472701,0.0131459,114640.0,114630.0,1.17351874]
[1761572472965,0.0011459,114640.0,114630.0,1.16351875]
[1761572473183,0.0011459,114640.0,114630.0,0.51634626]
[1761572473393,0.0011459,114640.0,114630.0,0.67358626]
[1761572473599,0.0011459,114640.0,114630.0,0.33358626]
[1761572473809,0.0001459,114640.0,114630.0,1.22973974]
[1761572474449,0.0051459,114640.0,114630.0,1.22973974]
[1761572474664,0.0001459,114640.0,114630.0,1.22973974]
[1761572474880,0.0001459,114640.0,114630.0,0.17634626]
[1761572475100,0.29223147,114640.0,114630.0,0.68907187]
[1761572475320,0.36024309,114640.0,114630.0,0.86358626]
[1761572475537,0.26442408,114640.0,114630.0,0.68911187]
[1761572475761,0.82657756,114640.0,114630.0,0.47603187]
[1761572475976,0.82657756,114640.0,114630.0,0.68907187]
[1761572476182,0.82057756,114640.0,114630.0,0.68907187]
[1761572476397,0.35424309,114640.0,114630.0,0.68907187]
[1761572476636,0.82057756,114640.0,114630.0,0.68907187]
[1761572476863,0.08996491,114640.0,114630.0,0.68907187]
[1761572477065,0.08996491,114640.0,114630.0,0.86354626]
[1761572477066,0.0001459,114640.0,114630.0,0.86354626]
[1761572477272,0.08996491,114640.0,114630.0,0.09251187]
[1761572477472,0.08996491,114640.0,114630.0,0.86358626]
[1761572477685,0.27242408,114640.0,114630.0,0.86358626]
[1761572477913,0.09796491,114640.0,114630.0,0.86358626]
[1761572478343,0.27242408,114640.0,114630.0,0.68911187]
[1761572478544,0.09796491,114640.0,114630.0,0.86358626]
[1761572478745,0.27242408,114640.0,114630.0,0.86358626]
[1761572478954,0.27242408,114640.0,114630.0,0.68911187]
[1761572479411,0.27242408,114640.0,114630.0,0.86358626]
[1761572479982,0.09796491,114640.0,114630.0,0.86358626]
[1761572480400,0.0081459,114640.0,114630.0,0.86358626]
[1761572482786,0.0081459,114640.0,114630.0,1.41973974]
[1761572483006,0.0081459,114640.0,114630.0,1.75973974]
[1761572483216,0.0081459,114640.0,114630.0,1.20358626]
[1761572483643,0.0081459,114640.0,114630.0,1.75973974]
[1761572483841,0.0081459,114640.0,114630.0,1.20358626]
[1761572484491,0.0001459,114640.0,114630.0,1.20358626]
[1761572484936,0.0051459,114640.0,114630.0,0.09251187]
[1761572485149,0.17460507,114640.0,114630.0,0.53191187]
[1761572485572,0.17460507,114640.0,114630.0,0.68923187]
[1761572485573,0.17960507,114640.0,114630.0,0.68923187]
[1761572486009,0.17960507,114640.0,114630.0,0.53191187]
[1761572486010,0.82057756,114640.0,114630.0,0.53191187]
[1761572486222,0.83057756,114640.0,114630.0,0.53191187]
[1761572486426,0.83057756,114640.0,114630.0,0.68919187]
[1761572487686,0.82057756,114640.0,114630.0,0.09251187]
[1761572487896,1.28657885,114640.0,114630.0,0.68919187]
[1761572488132,1.29957885,114640.0,114630.0,0.00187187]
[1761572488346,1.33416642,114640.0,114630.0,0.38943187]
[1761572488990,1.32116642,114640.0,114630.0,0.38943187]
[1761572489206,1.33716642,114640.0,114630.0,0.38943187]
[1761572489414,0.78101294,114640.0,114630.0,0.38943187]
[1761572489632,0.72876432,114640.0,114630.0,0.38943187]
[1761572489838,1.26739657,114640.0,114630.0,0.38943187]
[1761572490494,0.10696491,114640.0,114630.0,0.38943187]
[1761572490710,0.10696491,114640.0,114630.0,0.56390626]
[1761572490711,0.0171459,114640.0,114630.0,0.56390626]
[1761572490923,0.19160507,114640.0,114630.0,0.56390626]
[1761572491137,0.19160507,114640.0,114630.0,0.38943187]
[1761572491549,0.0171459,114640.0,114630.0,0.56390626]
[1761572491813,0.19160507,114640.0,114630.0,0.56390626]
[1761572492672,0.19160507,114640.0,114630.0,0.38943187]
[1761572492890,0.0171459,114640.0,114630.0,0.56390626]
[1761572494171,0.0161459,114640.0,114630.0,0.56390626]
[1761572494591,0.17460507,114640.0,114630.0,0.56390626]
[1761572494812,0.83963668,114640.0,114630.0,0.59879187]
[1761572495025,0.84963668,114640.0,114630.0,0.59979187]
[1761572495230,0.27442408,114640.0,114630.0,0.59979187]
[1761572495434,0.27442408,114640.0,114630.0,0.59879187]
[1761572495648,0.26442408,114640.0,114630.0,0.59879187]
[1761572496070,0.27442408,114640.0,114630.0,0.59979187]
[1761572496276,0.26442408,114640.0,114630.0,0.59879187]
[1761572496685,0.28042408,114640.0,114630.0,0.60079187]
[1761572497334,0.90068504,114640.0,114630.0,0.60079187]
[1761572497777,0.92492966,114640.0,114630.0,0.60079187]
[1761572498206,0.90892966,114640.0,114630.0,0.59879187]
[1761572498417,0.90892966,114640.0,114630.0,0.60079187]
[1761572498638,0.92692966,114640.0,114630.0,0.60067187]
[1761572498862,0.90892966,114640.0,114630.0,0.59867187]
[1761572499090,0.93217261,114640.0,114630.0,0.59867187]
[1761572499357,0.39201913,114640.0,114630.0,0.60067187]
[1761572499574,0.32328924,114640.0,114630.0,0.60067187]
[1761572499781,0.30712616,114640.0,114630.0,0.60067187]
[1761572500194,0.86327964,114640.0,114630.0,0.60067187]
[1761572500405,0.29112616,114640.0,114630.0,0.59867187]
[1761572500826,0.84727964,114640.0,114630.0,0.59867187]
[1761572501033,0.89616108,114640.0,114630.0,0.59867187]
[1761572501450,0.3400076,114640.0,114630.0,0.59867187]
[1761572501667,0.91233445,114640.0,114630.0,0.00187187]
[1761572501880,0.35618097,114640.0,114630.0,0.59859187]
[1761572502090,0.9355774,114640.0,114630.0,0.59859187]
[1761572502296,0.9585774,114640.0,114630.0,0.60259187]
[1761572502504,0.9585774,114640.0,114630.0,0.00587187]
[1761572502717,0.33029953,114640.0,114630.0,0.60263187]
[1761572502926,0.31412616,114640.0,114630.0,0.60263187]
[1761572505036,0.87027964,114640.0,114630.0,0.60263187]
[1761572505284,0.31412616,114640.0,114630.0,0.60263187]
[1761572505529,0.87027964,114640.0,114630.0,0.60263187]
[1761572505757,0.9157033,114640.0,114630.0,0.60263187]
[1761572505950,0.31412616,114640.0,114630.0,0.60263187]
[1761572506154,0.87027964,114640.0,114630.0,0.60263187]
[1761572506769,0.31412616,114640.0,114630.0,0.60263187]
[1761572507022,0.87027964,114640.0,114630.0,0.60263187]
[1761572507437,0.96009865,114640.0,114630.0,0.60263187]
[1761572507645,0.31412616,114640.0,114630.0,0.38959187]
[1761572507849,0.33030813,114640.0,114630.0,0.60243187]
[1761572508060,0.90970456,114640.0,114630.0,0.60243187]
[1761572508904,0.35355108,114640.0,114630.0,0.60243187]
[1761572509117,0.96561623,114640.0,114630.0,0.60243187]
[1761572510001,0.94943426,114640.0,114630.0,0.60243187]
[1761572510201,0.94943426,114640.0,114630.0,0.60247187]
[1761572511349,0.92619131,114640.0,114630.0,0.60247187]
[1761572511559,0.94943426,114640.0,114630.0,0.60247187]
[1761572511997,0.33736911,114640.0,114630.0,0.60247187]
[1761572512213,0.87027964,114640.0,114630.0,0.60247187]
[1761572513647,0.89352259,114640.0,114630.0,0.60247187]
[1761572514835,1.28589657,114640.0,114630.0,0.00591187]
[1761572515056,1.28589657,114640.0,114630.0,0.39299187]
[1761572515273,1.4302733,114640.0,114630.0,0.39299187]
[1761572515698,0.87411982,114640.0,114630.0,0.39299187]
[1761572515918,0.82743942,114640.0,114630.0,0.39299187]
[1761572516131,1.3835929,114640.0,114630.0,0.39299187]
[1761572516339,1.40690397,114640.0,114630.0,0.39299187]
[1761572516541,1.48690397,114640.0,114630.0,0.39299187]
[1761572516745,1.4635929,114640.0,114630.0,0.39299187]
[1761572517162,1.4635929,114640.0,114630.0,0.39172439]
[1761572517366,1.48690237,114640.0,114630.0,0.00464439]
[1761572517574,1.48690237,114640.0,114630.0,0.39176439]
[1761572517781,0.51450484,114610.0,114600.0,0.00287057]
[1761572517990,1.33175286,114610.0,114600.0,0.23311057]
[1761572518427,1.88790634,114610.0,114600.0,0.23373493]
[1761572518634,0.17452006,114600.0,114590.0,0.00023019]
[1761572518861,0.94168635,114600.0,114590.0,0.21295019]
[1761572519066,0.83911309,114600.0,114590.0,0.21295019]
[1761572519270,0.26433907,114600.0,114590.0,0.21315836]
[1761572519478,0.82049255,114600.0,114590.0,0.21315836]
[1761572519686,0.26433907,114600.0,114590.0,0.21315836]
[1761572519888,0.26448486,114600.0,114590.0,0.21315836]
[1761572520062,0.82063834,114600.0,114590.0,0.21315836]
[1761572520292,0.0899648,114600.0,114590.0,0.38769365]
[1761572520702,0.01514579,114600.0,114590.0,0.38869365]
[1761572520911,0.01514579,114600.0,114590.0,0.72869365]
[1761572521322,0.01614579,114600.0,114590.0,0.72869365]
[1761572521527,0.00114579,114600.0,114590.0,0.72769365]
[1761572521730,0.00114579,114600.0,114590.0,1.28384713]
[1761572521934,0.00014579,114600.0,114590.0,0.72769365]
[1761572522179,0.00014579,114600.0,114590.0,0.81751266]
[1761572522380,0.00014579,114600.0,114590.0,1.37366614]
[1761572522589,0.00014579,114600.0,114590.0,0.81751266]
[1761572522793,0.00014579,114600.0,114590.0,1.37366614]
[1761572523281,0.00914579,114600.0,114590.0,0.60479266]
[1761572523580,0.00914579,114600.0,114590.0,0.00043836]
[1761572523581,0.17466585,114600.0,114590.0,0.00043836]
[1761572523814,0.73081933,114600.0,114590.0,0.05623836]
[1761572524051,0.27348486,114600.0,114590.0,0.21311836]
[1761572524296,0.27348486,114600.0,114590.0,0.05623836]
[1761572524552,0.27348486,114600.0,114590.0,0.21311836]
[1761572525081,0.26448486,114600.0,114590.0,0.21311836]
[1761572525306,0.26448486,114600.0,114590.0,0.59691836]
[1761572525775,0.0899648,114600.0,114590.0,0.77145365]
[1761572525992,0.00014579,114600.0,114590.0,1.66760713]
[1761572526196,0.00014579,114600.0,114590.0,1.75742614]
[1761572526835,0.00814579,114600.0,114590.0,1.75742614]
[1761572527051,0.00014579,114600.0,114590.0,1.8036084]
[1761572527264,0.00014579,114600.0,114590.0,1.75742614]
[1761572527465,0.00614579,114600.0,114590.0,1.75742614]
[1761572527874,0.00014579,114600.0,114590.0,1.75742614]
[1761572528076,0.00014579,114600.0,114590.0,1.89014916]
[1761572528497,0.00714579,114600.0,114590.0,1.20123266]
[1761572528698,0.00714579,114600.0,114590.0,1.11141365]
[1761572529117,0.18166585,114600.0,114590.0,0.77141365]
[1761572529316,0.00714579,114600.0,114590.0,0.77141365]
[1761572529713,0.18166585,114600.0,114590.0,0.59687836]
[1761572530129,0.17466585,114600.0,114590.0,0.77141365]
[1761572530335,0.00014579,114600.0,114590.0,0.77141365]
[1761572530542,0.00614579,114600.0,114590.0,1.80029015]
[1761572530762,0.00014579,114600.0,114590.0,1.80029015]
[1761572531262,0.00514579,114600.0,114590.0,1.80029015]
[1761572531473,0.00014579,114600.0,114590.0,1.11141365]
[1761572531693,0.00014579,114600.0,114590.0,1.89010916]
[1761572531914,0.00614579,114600.0,114590.0,1.89010916]
[1761572532135,0.00614579,114600.0,114590.0,1.20123266]
[1761572532350,0.00614579,114600.0,114590.0,1.89010916]
[1761572533013,0.00614579,114600.0,114590.0,1.11141365]
[1761572533685,0.00014579,114600.0,114590.0,1.89010916]
[1761572534607,0.00514579,114600.0,114590.0,1.89010916]
[1761572534842,0.01114579,114600.0,114590.0,1.89010916]
[1761572535062,0.01114579,114600.0,114590.0,1.98082916]
[1761572535265,0.00014579,114600.0,114590.0,1.98082916]
[1761572535679,0.00614579,114600.0,114590.0,1.98082916]
[1761572536097,0.00614579,114600.0,114590.0,1.98070916]
[1761572536696,0.00614579,114600.0,114590.0,1.29183266]
[1761572536917,0.00614579,114600.0,114590.0,1.98070916]
[1761572537246,0.00614579,114600.0,114590.0,1.29183266]
[1761572537491,0.00014579,114600.0,114590.0,1.98070916]
[1761572537687,0.00014579,114600.0,114590.0,1.29183266]
[1761572537891,0.00614579,114600.0,114590.0,1.04525365]
[1761572538132,0.00614579,114600.0,114590.0,1.20201365]
[1761572539104,0.00014579,114600.0,114590.0,0.86201365]
[1761572539305,0.17466585,114600.0,114590.0,0.26569365]
[1761572539508,0.00014579,114600.0,114590.0,0.86197365]
[1761572540215,0.17466585,114600.0,114590.0,0.68743836]
[1761572540615,0.18066585,114600.0,114590.0,0.68743836]
[1761572541492,0.18066585,114600.0,114590.0,0.86197365]
[1761572541654,0.00614579,114600.0,114590.0,0.86197365]
[1761572542056,0.00614579,114600.0,114590.0,1.55085015]
[1761572542578,0.00014579,114600.0,114590.0,1.98066916]
[1761572543147,0.00014579,114600.0,114590.0,2.03685141]
[1761572543329,1e-08,114600.0,114590.0,2.03685141]
[1761572544386,1e-08,114600.0,114590.0,1.12605577]
[1761572544596,0.1831503,114660.0,114640.0,0.17444534]
[1761572544800,0.18329676,114660.0,114650.0,0.39045586]
[1761572545022,0.18329676,114660.0,114650.0,0.68696]
[1761572545458,0.18329676,114660.0,114650.0,0.09068]
[1761572545600,0.18329676,114660.0,114650.0,0.68692]
[1761572546798,0.00014646,114660.0,114650.0,0.86136395]
[1761572547010,0.00014646,114660.0,114650.0,1.89024045]
[1761572547505,0.00014646,114660.0,114650.0,1.79956045]
[1761572547740,0.01314646,114660.0,114650.0,1.80456045]
[1761572547958,0.00014646,114660.0,114650.0,1.80056045]
[1761572548209,0.00014646,114660.0,114650.0,1.89037946]
[1761572548434,0.00014646,114660.0,114650.0,1.20050296]
[1761572548639,0.01314646,114660.0,114650.0,1.20450296]
[1761572548860,0.01314646,114660.0,114650.0,1.20550296]
[1761572549081,0.01314646,114660.0,114650.0,1.11568395]
[1761572549716,0.1875752,114660.0,114650.0,0.60124]
[1761572549929,0.1875752,114660.0,114650.0,0.77568395]
[1761572550351,0.01314646,114660.0,114650.0,0.77568395]
[1761572550560,0.1875752,114660.0,114650.0,0.77568395]
[1761572550771,0.01314646,114660.0,114650.0,0.86550296]
[1761572551174,0.00314646,114660.0,114650.0,0.86550296]
[1761572551374,0.00314646,114660.0,114650.0,0.77568395]
[1761572551795,0.1775752,114660.0,114650.0,0.60124]
[1761572551997,0.1775752,114660.0,114650.0,0.77568395]
[1761572552406,0.00314646,114660.0,114650.0,0.77568395]
[1761572553042,0.00314646,114660.0,114650.0,1.46456045]
[1761572553248,0.00314646,114660.0,114650.0,0.77568395]
[1761572553655,0.1775752,114660.0,114650.0,0.60124]
[1761572553866,0.1775752,114660.0,114650.0,0.77544395]
[1761572554075,0.00314646,114660.0,114650.0,0.77544395]
[1761572554270,0.00314646,114660.0,114650.0,1.55413946]
[1761572554685,0.00314646,114660.0,114650.0,0.86526296]
[1761572554879,0.00314646,114660.0,114650.0,0.95594296]
[1761572555497,0.00314646,114660.0,114650.0,0.63588395]
[1761572555779,0.00314646,114660.0,114650.0,0.86608395]
[1761572557157,0.00314646,114660.0,114650.0,1.64477946]
[1761572557364,0.00314646,114660.0,114650.0,1.98477946]
[1761572557768,0.00314646,114660.0,114650.0,2.02096174]
[1761572557978,0.00996411,114690.0,114680.0,0.17439832]
[1761572558154,0.00124496,114690.0,114680.0,0.38663832]
[1761572558537,0.17562807,114690.0,114680.0,0.38663832]
[1761572559500,0.19562807,114690.0,114680.0,0.38963832]
[1761572559711,0.02124496,114690.0,114680.0,0.38663832]
[1761572559868,0.00124496,114690.0,114680.0,0.38663832]
[1761572560102,0.01224496,114690.0,114680.0,0.38863832]
[1761572560474,0.18662807,114690.0,114680.0,0.38863832]
[1761572561090,0.18662807,114690.0,114680.0,0.21424]
[1761572561325,0.18662807,114690.0,114680.0,0.21524]
[1761572561742,0.96532358,114690.0,114680.0,0.003]